fUST/lending_fUST_20260519
["ID","MTS","AMOUNT","RATE_DAILY","PERIOD"]
[422588392,1779127843000,-572.91,9.589e-05,2]
[422588396,1779127843000,-822.99,9.589e-05,2]
[422588389,1779127843000,-589.46,9.589e-05,2]
[422588391,1779127843000,-500.0,9.589e-05,2]
[422588397,1779127843000,-529.02,9.589e-05,2]
[422588399,1779127843000,-500.0,9.589e-05,2]
[422588450,1779127843000,-501.41,9.589e-05,2]
[422588395,1779127843000,-500.0,9.589e-05,2]
[422588449,1779127843000,-500.0,9.589e-05,2]
[422588490,1779127843000,-500.0,9.863e-05,2]
[422588486,1779127843000,-899.53,9.863e-05,2]
[422588500,1779127843000,-500.0,9.863e-05,2]
[422588499,1779127843000,-534.46,9.863e-05,2]
[422588501,1779127843000,-500.0,9.863e-05,2]
[422588492,1779127843000,-572.91,9.863e-05,2]
[422588504,1779127843000,-919.11,9.863e-05,2]
[422588502,1779127843000,-1126.22,9.863e-05,2]
[422588506,1779127843000,-1002.27,9.863e-05,2]
[422588505,1779127843000,-1044.68,9.863e-05,2]
[422588507,1779127843000,-500.0,9.863e-05,2]
[422588495,1779127843000,-624.74694705,9.863e-05,2]
[422588524,1779127843000,-15705.19,9.863e-05,2]
[422588494,1779127843000,-500.0,9.863e-05,2]
[422588498,1779127843000,-529.02,9.863e-05,2]
[422588497,1779127843000,-822.99,9.863e-05,2]
[422588496,1779127843000,-500.0,9.863e-05,2]
[422588452,1779127843000,-500.0,9.589e-05,2]
[422588523,1779127843000,-715.24,9.863e-05,2]
[422588517,1779127843000,-904.16,9.863e-05,2]
[422588518,1779127843000,-224.56112528,9.863e-05,2]
[422588515,1779127843000,-828.23,9.863e-05,2]
[422588521,1779127843000,-500.0,9.863e-05,2]
[422588491,1779127843000,-339.48263526,9.863e-05,2]
[422588516,1779127843000,-264.11677033,9.863e-05,2]
[422588509,1779127843000,-500.0,9.863e-05,2]
[422588522,1779127843000,-2203.58,9.863e-05,2]
[422588513,1779127843000,-765.54,9.863e-05,2]
[422588512,1779127843000,-942.51,9.863e-05,2]
[422588510,1779127843000,-1823.44,9.863e-05,2]
[422588508,1779127843000,-500.0,9.863e-05,2]
[422588520,1779127843000,-500.0,9.863e-05,2]
[422588485,1779127843000,-500.0,9.863e-05,2]
[422588519,1779127843000,-3102.15,9.863e-05,2]
[422588484,1779127843000,-500.0,9.863e-05,2]
[422588489,1779127843000,-589.46,9.863e-05,2]
[422588454,1779127843000,-2613.31,9.589e-05,2]
[422588456,1779127843000,-813.93,9.589e-05,2]
[422588453,1779127843000,-500.0,9.589e-05,2]
[422588459,1779127843000,-500.0,9.589e-05,2]
[422588460,1779127843000,-644.79446246,9.612e-05,2]
[422588455,1779127843000,-1051.8,9.589e-05,2]
[422588461,1779127843000,-668.65185757,9.667e-05,2]
[422588458,1779127843000,-2548.95,9.589e-05,2]
[422588462,1779127843000,-397.65536404,9.692e-05,2]
[422588463,1779127843000,-693.3919763,9.722e-05,2]
[422588475,1779127843000,-500.0,9.863e-05,2]
[422588473,1779127843000,-500.0,9.863e-05,2]
[422588474,1779127843000,-539.04,9.863e-05,2]
[422588465,1779127843000,-745.65223616,9.832e-05,2]
[422588457,1779127843000,-1141.69,9.589e-05,2]
[422588472,1779127843000,-500.0,9.863e-05,2]
[422588464,1779127843000,-719.04747942,9.777e-05,2]
[422588481,1779127843000,-500.0,9.863e-05,2]
[422588488,1779127843000,-500.0,9.863e-05,2]
[422588487,1779127843000,-500.0,9.863e-05,2]
[422588483,1779127843000,-500.0,9.863e-05,2]
[422588477,1779127843000,-500.0,9.863e-05,2]
[422588479,1779127843000,-500.0,9.863e-05,2]
[422588470,1779127843000,-500.0,9.863e-05,2]
[422588468,1779127843000,-500.0,9.863e-05,2]
[422588476,1779127843000,-827.84,9.863e-05,2]
[422588467,1779127843000,-500.0,9.863e-05,2]
[422588482,1779127843000,-500.0,9.863e-05,2]
[422588469,1779127843000,-500.0,9.863e-05,2]
[422588471,1779127843000,-500.0,9.863e-05,2]
[422588466,1779127843000,-1123.724,9.863e-05,2]
[422588551,1779127844000,-813.93,9.863e-05,2]
[422588563,1779127844000,-500.0,0.00010136,2]
[422588556,1779127844000,-151.612034,9.88e-05,2]
[422588553,1779127844000,-2548.95,9.863e-05,2]
[422588557,1779127844000,-773.2413689,9.887e-05,2]
[422588562,1779127844000,-500.0,0.00010136,2]
[422588566,1779127844000,-500.0,0.00010136,2]
[422588564,1779127844000,-500.0,0.00010136,2]
[422588565,1779127844000,-500.0,0.00010136,2]
[422588569,1779127844000,-500.0,0.00010136,2]
[422588571,1779127844000,-500.0,0.00010136,2]
[422588568,1779127844000,-539.04,0.00010136,2]
[422588555,1779127844000,-703413.92682277,9.88e-05,2]
[422588586,1779127844000,-822.99,0.00010136,2]
[422588574,1779127844000,-500.0,0.00010136,2]
[422588570,1779127844000,-827.84,0.00010136,2]
[422588567,1779127844000,-500.0,0.00010136,2]
[422588572,1779127844000,-500.0,0.00010136,2]
[422588576,1779127844000,-500.0,0.00010136,2]
[422588575,1779127844000,-500.0,0.00010136,2]
[422588587,1779127844000,-529.02,0.00010136,2]
[422588588,1779127844000,-534.46,0.00010136,2]
[422588578,1779127844000,-899.53,0.00010136,2]
[422588582,1779127844000,-500.0,0.00010136,2]
[422588585,1779127844000,-500.0,0.00010136,2]
[422588552,1779127844000,-1141.69,9.863e-05,2]
[422588577,1779127844000,-500.0,0.00010136,2]
[422588573,1779127844000,-500.0,0.00010136,2]
[422588554,1779127844000,-500.0,9.863e-05,2]
[422588542,1779127844000,-714.43,9.863e-05,2]
[422588549,1779127844000,-2613.31,9.863e-05,2]
[422588584,1779127844000,-500.0,0.00010136,2]
[422588525,1779127844000,-917.36,9.863e-05,2]
[422588532,1779127844000,-1430.11,9.863e-05,2]
[422588533,1779127844000,-500.0,9.863e-05,2]
[422588534,1779127844000,-500.0,9.863e-05,2]
[422588526,1779127844000,-500.0,9.863e-05,2]
[422588527,1779127844000,-818.92,9.863e-05,2]
[422588528,1779127844000,-3782.24,9.863e-05,2]
[422588529,1779127844000,-500.0,9.863e-05,2]
[422588530,1779127844000,-1969.27,9.863e-05,2]
[422588531,1779127844000,-1069.09,9.863e-05,2]
[422588538,1779127844000,-500.0,9.863e-05,2]
[422588537,1779127844000,-500.0,9.863e-05,2]
[422588536,1779127844000,-1456.96,9.863e-05,2]
[422588541,1779127844000,-1040.93,9.863e-05,2]
[422588535,1779127844000,-727.2,9.863e-05,2]
[422588543,1779127844000,-1067.09,9.863e-05,2]
[422588546,1779127844000,-938.67,9.863e-05,2]
[422588544,1779127844000,-500.0,9.863e-05,2]
[422588547,1779127844000,-617.67556878,9.863e-05,2]
[422588545,1779127844000,-501.41,9.863e-05,2]
[422588539,1779127844000,-691.94,9.863e-05,2]
[422588540,1779127844000,-2568.42,9.863e-05,2]
[422588550,1779127844000,-1051.8,9.863e-05,2]
[422588559,1779127844000,-325.8428722,0.00010125,2]
[422588558,1779127844000,-801.85129955,9.942e-05,2]
[422588561,1779127844000,-500.0,0.00010136,2]
[422588560,1779127844000,-832.2958,0.00010136,2]
[422588581,1779127844000,-589.46,0.00010136,2]
[422588548,1779127844000,-500.0,9.863e-05,2]
[422588580,1779127844000,-500.0,0.00010136,2]
[422588617,1779127844000,-500.0,0.00010136,2]
[422588627,1779127844000,-1067.09,0.00010136,2]
[422588619,1779127844000,-727.2,0.00010136,2]
[422588622,1779127844000,-500.0,0.00010136,2]
[422588621,1779127844000,-500.0,0.00010136,2]
[422588623,1779127844000,-691.94,0.00010136,2]
[422588624,1779127844000,-2568.42,0.00010136,2]
[422588647,1779127844000,-423.46610393,0.0001041,2]
[422588625,1779127844000,-1040.93,0.00010136,2]
[422588629,1779127844000,-501.41,0.00010136,2]
[422588641,1779127844000,-198.42968522,0.00010283,2]
[422588640,1779127844000,-199.05688246,0.00010283,2]
[422588639,1779127844000,-309.41744928,0.00010283,2]
[422588618,1779127844000,-263.37428996,0.00010136,2]
[422588630,1779127844000,-938.67,0.00010136,2]
[422588631,1779127844000,-500.0,0.00010136,2]
[422588638,1779127844000,-4545.31648605,0.00010219,2]
[422588637,1779127844000,-500.0,0.00010136,2]
[422588636,1779127844000,-2548.95,0.00010136,2]
[422588634,1779127844000,-813.93,0.00010136,2]
[422588633,1779127844000,-1051.8,0.00010136,2]
[422588635,1779127844000,-1141.69,0.00010136,2]
[422588642,1779127844000,-500.0,0.0001041,2]
[422588644,1779127844000,-500.0,0.0001041,2]
[422588645,1779127844000,-500.0,0.0001041,2]
[422588646,1779127844000,-500.0,0.0001041,2]
[422588643,1779127844000,-500.0,0.0001041,2]
[422588583,1779127844000,-572.91,0.00010136,2]
[422588628,1779127844000,-500.0,0.00010136,2]
[422588620,1779127844000,-1456.96,0.00010136,2]
[422588632,1779127844000,-2613.31,0.00010136,2]
[422588626,1779127844000,-714.43,0.00010136,2]
[422588616,1779127844000,-1430.11,0.00010136,2]
[422588579,1779127844000,-500.0,0.00010136,2]
[422588589,1779127844000,-500.0,0.00010136,2]
[422588591,1779127844000,-1126.22,0.00010136,2]
[422588593,1779127844000,-1044.68,0.00010136,2]
[422588590,1779127844000,-500.0,0.00010136,2]
[422588592,1779127844000,-919.11,0.00010136,2]
[422588599,1779127844000,-942.51,0.00010136,2]
[422588594,1779127844000,-1002.27,0.00010136,2]
[422588595,1779127844000,-500.0,0.00010136,2]
[422588600,1779127844000,-765.54,0.00010136,2]
[422588596,1779127844000,-500.0,0.00010136,2]
[422588597,1779127844000,-500.0,0.00010136,2]
[422588602,1779127844000,-904.16,0.00010136,2]
[422588598,1779127844000,-1823.44,0.00010136,2]
[422588614,1779127844000,-1969.27,0.00010136,2]
[422588615,1779127844000,-1069.09,0.00010136,2]
[422588613,1779127844000,-511.75202772,0.00010136,2]
[422588608,1779127844000,-15705.19,0.00010136,2]
[422588606,1779127844000,-2203.58,0.00010136,2]
[422588611,1779127844000,-818.92,0.00010136,2]
[422588605,1779127844000,-500.0,0.00010136,2]
[422588609,1779127844000,-917.36,0.00010136,2]
[422588610,1779127844000,-500.0,0.00010136,2]
[422588607,1779127844000,-715.24,0.00010136,2]
[422588612,1779127844000,-3782.24,0.00010136,2]
[422588604,1779127844000,-500.0,0.00010136,2]
[422588603,1779127844000,-3102.15,0.00010136,2]
[422588601,1779127844000,-828.23,0.00010136,2]
[422588673,1779127845000,-919.11,0.0001041,2]
[422588669,1779127845000,-534.46,0.0001041,2]
[422588666,1779127845000,-500.0,0.0001041,2]
[422588671,1779127845000,-500.0,0.0001041,2]
[422588672,1779127845000,-1126.22,0.0001041,2]
[422588668,1779127845000,-529.02,0.0001041,2]
[422588670,1779127845000,-500.0,0.0001041,2]
[422588679,1779127845000,-1823.44,0.0001041,2]
[422588677,1779127845000,-500.0,0.0001041,2]
[422588667,1779127845000,-822.99,0.0001041,2]
[422588686,1779127845000,-500.0,0.0001041,2]
[422588680,1779127845000,-942.51,0.0001041,2]
[422588687,1779127845000,-2203.58,0.0001041,2]
[422588682,1779127845000,-828.23,0.0001041,2]
[422588678,1779127845000,-500.0,0.0001041,2]
[422588675,1779127845000,-1002.27,0.0001041,2]
[422588665,1779127845000,-500.0,0.0001041,2]
[422588651,1779127845000,-827.84,0.0001041,2]
[422588662,1779127845000,-589.46,0.0001041,2]
[422588676,1779127845000,-199.32941796,0.0001041,2]
[422588648,1779127845000,-500.0,0.0001041,2]
[422588649,1779127845000,-539.04,0.0001041,2]
[422588650,1779127845000,-500.0,0.0001041,2]
[422588661,1779127845000,-500.0,0.0001041,2]
[422588660,1779127845000,-500.0,0.0001041,2]
[422588652,1779127845000,-500.0,0.0001041,2]
[422588664,1779127845000,-572.91,0.0001041,2]
[422588658,1779127845000,-500.0,0.0001041,2]
[422588655,1779127845000,-500.0,0.0001041,2]
[422588659,1779127845000,-899.53,0.0001041,2]
[422588654,1779127845000,-500.0,0.0001041,2]
[422588656,1779127845000,-500.0,0.0001041,2]
[422588657,1779127845000,-500.0,0.0001041,2]
[422588663,1779127845000,-500.0,0.0001041,2]
[422588674,1779127845000,-1044.68,0.0001041,2]
[422588653,1779127845000,-500.0,0.0001041,2]
[422588683,1779127845000,-904.16,0.0001041,2]
[422588681,1779127845000,-765.54,0.0001041,2]
[422588684,1779127845000,-3102.15,0.0001041,2]
[422588711,1779127845000,-2613.31,0.0001041,2]
[422588702,1779127845000,-691.94,0.0001041,2]
[422588706,1779127845000,-1067.09,0.0001041,2]
[422588712,1779127845000,-1051.8,0.0001041,2]
[422588709,1779127845000,-938.67,0.0001041,2]
[422588714,1779127845000,-1141.69,0.0001041,2]
[422588716,1779127845000,-500.0,0.0001041,2]
[422588708,1779127845000,-501.41,0.0001041,2]
[422588717,1779127845000,-1518195.96156479,0.00010428,2]
[422588718,1779127845000,-20952.33928004,0.00010428,2]
[422588719,1779127845000,-27854.63210896,0.00010428,2]
[422588720,1779127845000,-238187.56345191,0.00010428,2]
[422588723,1779127845000,-500.0,9.315e-05,2]
[422588721,1779127845000,-500.0,8.767e-05,2]
[422588722,1779127845000,-500.0,9.041e-05,2]
[422588724,1779127845000,-486.490239,9.589e-05,2]
[422588715,1779127845000,-2548.95,0.0001041,2]
[422588710,1779127845000,-500.0,0.0001041,2]
[422588713,1779127845000,-813.93,0.0001041,2]
[422588701,1779127845000,-500.0,0.0001041,2]
[422588707,1779127845000,-500.0,0.0001041,2]
[422588700,1779127845000,-500.0,0.0001041,2]
[422588699,1779127845000,-1456.96,0.0001041,2]
[422588691,1779127845000,-318.3496387,0.0001041,2]
[422588688,1779127845000,-715.24,0.0001041,2]
[422588690,1779127845000,-917.36,0.0001041,2]
[422588692,1779127845000,-818.92,0.0001041,2]
[422588698,1779127845000,-727.2,0.0001041,2]
[422588689,1779127845000,-15705.19,0.0001041,2]
[422588695,1779127845000,-1069.09,0.0001041,2]
[422588693,1779127845000,-3782.24,0.0001041,2]
[422588704,1779127845000,-1040.93,0.0001041,2]
[422588705,1779127845000,-714.43,0.0001041,2]
[422588703,1779127845000,-2568.42,0.0001041,2]
[422588685,1779127845000,-500.0,0.0001041,2]
[422588697,1779127845000,-500.0,0.0001041,2]
[422588696,1779127845000,-1430.11,0.0001041,2]
[422588694,1779127845000,-1969.27,0.0001041,2]
[422588726,1779127846000,-500.0,9.589e-05,2]
[422588727,1779127846000,-1006.44759265,9.863e-05,2]
[422588728,1779127846000,-473.27240735,9.863e-05,2]
[422588725,1779127846000,-993.229761,9.589e-05,2]
[422588730,1779127846000,-1479.72,0.00010136,2]
[422588735,1779127846000,-3123.78958201,0.00010428,2]
[422588732,1779127846000,-449.83844713,0.0001041,2]
[422588733,1779127846000,-1029.88155287,0.0001041,2]
[422588729,1779127846000,-500.0,9.863e-05,2]
[422588734,1779127846000,-500.0,0.0001041,2]
[422588738,1779127846000,-1900.28465855,0.00010428,2]
[422588737,1779127846000,-9061.34134447,0.00010428,2]
[422588739,1779127846000,-1126.90394658,0.00010428,2]
[422588736,1779127846000,-505320.37705276,0.00010428,2]
[422588731,1779127846000,-500.0,0.00010136,2]
[422588745,1779127847000,-22356.04873341,8.219e-05,2]
[422588744,1779127847000,-1106.16733598,8.219e-05,2]
[422588746,1779127847000,-26537.78393061,8.219e-05,2]
[422588748,1779127847000,-74589.4210396,0.00010428,2]
[422588747,1779127847000,-3030.2109907,0.00010219,2]
[422588757,1779128549000,135.35279526,3.725e-05,2]
[422588756,1779128549000,95.21680474,3.725e-05,2]
[422588838,1779129031000,-330.24484859,7.508e-05,2]
[422588840,1779129031000,-38791.48468676,8.119e-05,2]
[422588836,1779129031000,-300.0,7.507e-05,2]
[422588834,1779129031000,-5000.0,7.396e-05,2]
[422588832,1779129031000,-5000.0,7.322e-05,2]
[422588985,1779129043000,-500.0,8.218e-05,2]
[422588986,1779129043000,-500.0,8.218e-05,2]
[422588976,1779129043000,-500.0,8.218e-05,2]
[422588973,1779129043000,-500.0,8.218e-05,2]
[422588972,1779129043000,-500.0,8.218e-05,2]
[422588969,1779129043000,-500.0,8.218e-05,2]
[422588977,1779129043000,-500.0,8.218e-05,2]
[422588978,1779129043000,-500.0,8.218e-05,2]
[422588988,1779129043000,-500.0,8.218e-05,2]
[422588980,1779129043000,-500.0,8.218e-05,2]
[422588987,1779129043000,-500.0,8.218e-05,2]
[422588992,1779129043000,-500.0,8.218e-05,2]
[422588968,1779129043000,-500.0,8.218e-05,2]
[422588984,1779129043000,-500.0,8.218e-05,2]
[422588981,1779129043000,-500.0,8.218e-05,2]
[422588982,1779129043000,-500.0,8.218e-05,2]
[422588990,1779129043000,-500.0,8.218e-05,2]
[422588999,1779129043000,-500.0,8.218e-05,2]
[422588998,1779129043000,-500.0,8.218e-05,2]
[422588979,1779129043000,-500.0,8.218e-05,2]
[422588967,1779129043000,-500.0,8.218e-05,2]
[422588975,1779129043000,-476.78806853,8.218e-05,2]
[422588970,1779129043000,-500.0,8.218e-05,2]
[422588948,1779129043000,-401.9376245,8.038e-05,2]
[422588949,1779129043000,-7331.42745498,8.119e-05,2]
[422588955,1779129043000,-500.0,8.218e-05,2]
[422588952,1779129043000,-500.0,8.218e-05,2]
[422588951,1779129043000,-439.06521334,8.218e-05,2]
[422588950,1779129043000,-732.40253603,8.184e-05,2]
[422588954,1779129043000,-500.0,8.218e-05,2]
[422588953,1779129043000,-272.79009297,8.218e-05,2]
[422588960,1779129043000,-205.27528512,8.218e-05,2]
[422588965,1779129043000,-500.0,8.218e-05,2]
[422588959,1779129043000,-500.0,8.218e-05,2]
[422588962,1779129043000,-500.0,8.218e-05,2]
[422588957,1779129043000,-531.998954,8.218e-05,2]
[422588961,1779129043000,-500.0,8.218e-05,2]
[422588958,1779129043000,-500.0,8.218e-05,2]
[422588964,1779129043000,-500.0,8.218e-05,2]
[422588963,1779129043000,-500.0,8.218e-05,2]
[422588974,1779129043000,-500.0,8.218e-05,2]
[422588971,1779129043000,-500.0,8.218e-05,2]
[422588966,1779129043000,-500.0,8.218e-05,2]
[422588956,1779129043000,-500.0,8.218e-05,2]
[422588993,1779129043000,-500.0,8.218e-05,2]
[422588983,1779129043000,-500.0,8.218e-05,2]
[422588989,1779129043000,-619.18184321,8.218e-05,2]
[422589017,1779129043000,-500.0,8.219e-05,2]
[422589024,1779129043000,-500.0,8.219e-05,2]
[422589023,1779129043000,-432.74942926,8.219e-05,2]
[422589020,1779129043000,-500.0,8.219e-05,2]
[422589026,1779129043000,-500.0,8.219e-05,2]
[422589027,1779129043000,-795.5602,8.219e-05,2]
[422589025,1779129043000,-500.0,8.219e-05,2]
[422589028,1779129043000,-500.0,8.219e-05,2]
[422589031,1779129043000,-500.0,8.219e-05,2]
[422589022,1779129043000,-500.0,8.219e-05,2]
[422589032,1779129043000,-574.44,8.219e-05,2]
[422589030,1779129043000,-514.37,8.219e-05,2]
[422589034,1779129043000,-500.0,8.219e-05,2]
[422589040,1779129043000,-1139.65,8.219e-05,2]
[422589035,1779129043000,-500.0,8.219e-05,2]
[422589038,1779129043000,-589.07,8.219e-05,2]
[422589036,1779129043000,-652.92,8.219e-05,2]
[422589039,1779129043000,-500.0,8.219e-05,2]
[422589037,1779129043000,-500.0,8.219e-05,2]
[422588991,1779129043000,-500.0,8.218e-05,2]
[422589029,1779129043000,-500.0,8.219e-05,2]
[422589019,1779129043000,-500.0,8.219e-05,2]
[422589033,1779129043000,-500.0,8.219e-05,2]
[422589018,1779129043000,-500.0,8.219e-05,2]
[422589021,1779129043000,-562.2,8.219e-05,2]
[422589000,1779129043000,-500.0,8.218e-05,2]
[422588995,1779129043000,-500.0,8.218e-05,2]
[422588997,1779129043000,-500.0,8.218e-05,2]
[422588996,1779129043000,-500.0,8.218e-05,2]
[422589002,1779129043000,-500.0,8.218e-05,2]
[422589012,1779129043000,-500.0,8.219e-05,2]
[422589001,1779129043000,-200.0,8.218e-05,2]
[422589003,1779129043000,-500.0,8.218e-05,2]
[422589013,1779129043000,-517.4,8.219e-05,2]
[422588994,1779129043000,-500.0,8.218e-05,2]
[422589005,1779129043000,-500.0,8.219e-05,2]
[422589015,1779129043000,-500.0,8.219e-05,2]
[422589004,1779129043000,-500.0,8.219e-05,2]
[422589016,1779129043000,-380.69146125,8.219e-05,2]
[422589011,1779129043000,-500.0,8.219e-05,2]
[422589010,1779129043000,-500.0,8.219e-05,2]
[422589008,1779129043000,-500.0,8.219e-05,2]
[422589007,1779129043000,-500.0,8.219e-05,2]
[422589009,1779129043000,-500.0,8.219e-05,2]
[422589006,1779129043000,-357.41895739,8.219e-05,2]
[422589014,1779129043000,-500.0,8.219e-05,2]
[422589077,1779129044000,-626.42,8.219e-05,2]
[422589082,1779129044000,-500.0,8.493e-05,2]
[422589090,1779129044000,-517.4,8.493e-05,2]
[422589078,1779129044000,-500.0,8.219e-05,2]
[422589084,1779129044000,-500.0,8.493e-05,2]
[422589072,1779129044000,-924.83,8.219e-05,2]
[422589079,1779129044000,-1400.94957531,8.284e-05,2]
[422589074,1779129044000,-500.0,8.219e-05,2]
[422589080,1779129044000,-2069.49661459,8.384e-05,2]
[422589075,1779129044000,-500.0,8.219e-05,2]
[422589092,1779129044000,-500.0,8.493e-05,2]
[422589076,1779129044000,-703.89,8.219e-05,2]
[422589081,1779129044000,-2315.23659152,8.484e-05,2]
[422589095,1779129044000,-500.0,8.493e-05,2]
[422589101,1779129044000,-500.0,8.493e-05,2]
[422589091,1779129044000,-500.0,8.493e-05,2]
[422589094,1779129044000,-500.0,8.493e-05,2]
[422589083,1779129044000,-500.0,8.493e-05,2]
[422589085,1779129044000,-326.72890145,8.493e-05,2]
[422589086,1779129044000,-500.0,8.493e-05,2]
[422589089,1779129044000,-500.0,8.493e-05,2]
[422589088,1779129044000,-500.0,8.493e-05,2]
[422589087,1779129044000,-500.0,8.493e-05,2]
[422589096,1779129044000,-500.0,8.493e-05,2]
[422589099,1779129044000,-500.0,8.493e-05,2]
[422589097,1779129044000,-562.2,8.493e-05,2]
[422589100,1779129044000,-500.0,8.493e-05,2]
[422589073,1779129044000,-1593.1,8.219e-05,2]
[422589093,1779129044000,-300.97166212,8.493e-05,2]
[422589071,1779129044000,-500.0,8.219e-05,2]
[422589052,1779129044000,-2363.9,8.219e-05,2]
[422589064,1779129044000,-586.67,8.219e-05,2]
[422589041,1779129044000,-565.1,8.219e-05,2]
[422589042,1779129044000,-517.65,8.219e-05,2]
[422589043,1779129044000,-1949.61,8.219e-05,2]
[422589044,1779129044000,-1377.24,8.219e-05,2]
[422589045,1779129044000,-500.0,8.219e-05,2]
[422589056,1779129044000,-500.0,8.219e-05,2]
[422589046,1779129044000,-500.0,8.219e-05,2]
[422589104,1779129044000,-500.0,8.493e-05,2]
[422589048,1779129044000,-573.35,8.219e-05,2]
[422589053,1779129044000,-1230.8,8.219e-05,2]
[422589055,1779129044000,-500.0,8.219e-05,2]
[422589047,1779129044000,-511.83,8.219e-05,2]
[422589058,1779129044000,-650.58,8.219e-05,2]
[422589065,1779129044000,-500.0,8.219e-05,2]
[422589054,1779129044000,-668.18,8.219e-05,2]
[422589050,1779129044000,-500.0,8.219e-05,2]
[422589049,1779129044000,-9815.74,8.219e-05,2]
[422589051,1779129044000,-893.82,8.219e-05,2]
[422589067,1779129044000,-500.0,8.219e-05,2]
[422589060,1779129044000,-666.93,8.219e-05,2]
[422589066,1779129044000,-657.38,8.219e-05,2]
[422589059,1779129044000,-910.6,8.219e-05,2]
[422589061,1779129044000,-1605.26,8.219e-05,2]
[422589070,1779129044000,-508.71,8.219e-05,2]
[422589063,1779129044000,-500.0,8.219e-05,2]
[422589068,1779129044000,-713.56,8.219e-05,2]
[422589069,1779129044000,-1633.31,8.219e-05,2]
[422589062,1779129044000,-500.0,8.219e-05,2]
[422589057,1779129044000,-500.0,8.219e-05,2]
[422589107,1779129044000,-574.44,8.493e-05,2]
[422589098,1779129044000,-500.0,8.493e-05,2]
[422589103,1779129044000,-500.0,8.493e-05,2]
[422589143,1779129044000,-713.56,8.493e-05,2]
[422589138,1779129044000,-586.67,8.493e-05,2]
[422589141,1779129044000,-657.38,8.493e-05,2]
[422589137,1779129044000,-500.0,8.493e-05,2]
[422589142,1779129044000,-500.0,8.493e-05,2]
[422589135,1779129044000,-666.93,8.493e-05,2]
[422589139,1779129044000,-500.0,8.493e-05,2]
[422589140,1779129044000,-500.0,8.493e-05,2]
[422589144,1779129044000,-1633.31,8.493e-05,2]
[422589145,1779129044000,-508.71,8.493e-05,2]
[422589148,1779129044000,-1593.1,8.493e-05,2]
[422589150,1779129044000,-500.0,8.493e-05,2]
[422589149,1779129044000,-500.0,8.493e-05,2]
[422589152,1779129044000,-626.42,8.493e-05,2]
[422589157,1779129044000,-500.0,8.766e-05,2]
[422589154,1779129044000,-2738.04365387,8.684e-05,2]
[422589156,1779129044000,-500.0,8.766e-05,2]
[422589155,1779129044000,-500.0,8.766e-05,2]
[422589151,1779129044000,-703.89,8.493e-05,2]
[422589153,1779129044000,-500.0,8.493e-05,2]
[422589158,1779129044000,-249.14180798,8.766e-05,2]
[422589159,1779129044000,-500.0,8.766e-05,2]
[422589160,1779129044000,-500.0,8.766e-05,2]
[422589162,1779129044000,-500.0,8.766e-05,2]
[422589161,1779129044000,-500.0,8.766e-05,2]
[422589163,1779129044000,-500.0,8.766e-05,2]
[422589165,1779129044000,-500.0,8.767e-05,2]
[422589108,1779129044000,-500.0,8.493e-05,2]
[422589164,1779129044000,-550.0,8.766e-05,2]
[422589147,1779129044000,-924.83,8.493e-05,2]
[422589136,1779129044000,-1605.26,8.493e-05,2]
[422589166,1779129044000,-500.0,8.767e-05,2]
[422589130,1779129044000,-500.0,8.493e-05,2]
[422589146,1779129044000,-500.0,8.493e-05,2]
[422589106,1779129044000,-500.0,8.493e-05,2]
[422589102,1779129044000,-795.5602,8.493e-05,2]
[422589109,1779129044000,-500.0,8.493e-05,2]
[422589105,1779129044000,-514.37,8.493e-05,2]
[422589111,1779129044000,-652.92,8.493e-05,2]
[422589121,1779129044000,-500.0,8.493e-05,2]